[Event "44th Chess Olympiad Open 2022"]
[Site "Chennai"]
[Date "2022.07.29"]
[Round "1.53"]
[White "Van den Brink, Peter"]
[Black "Ferreira, Jorge Viterbo"]
[Result "0-1"]
[WhiteElo "2167"]
[BlackElo "2499"]
[Annotator "TA"]
[PlyCount "92"]
[EventDate "2022.??.??"]
[TimeControl "60"]

{[%evp 18,92,41,9,10,0,12,8,0,12,7,8,4,-6,-12,-29,0,0,0,-27,-41,-136,-134,-127,
-95,-175,-175,-156,-142,-179,-190,-188,-188,-294,-280,-311,-307,-322,-256,-295,
-222,-206,-202,-293,-296,-293,-284,-314,-314,-314,-300,-334,-333,-333,-322,
-294,-285,-391,-391,-373,-373,-397,-368,-789,-764,-1612,-1604,-1585,-1523,
-1620,-1592,-29979,-29980,-29980,-29981,-5126,-4133]} 1. e4 {[%emt 0:00:04]} c5
{[%emt 0:00:10]} 2. c3 {[%emt 0:00:15]} d6 {[%emt 0:02:07]} 3. d4 {[%emt 0:00:
00]} Nf6 {[%emt 0:00:07]} 4. Bd3 {[%emt 0:03:54]} cxd4 {[%emt 0:00:52]} 5. cxd4
{[%emt 0:00:24]} g6 {[%emt 0:00:15]} 6. Nc3 {[%emt 0:03:49]} Bg7 {[%emt 0:00:
00]} 7. Nge2 {[%emt 0:01:46]} O-O {[%emt 0:01:02]} 8. O-O {[%emt 0:00:13]} Nc6
{[%emt 0:01:06]} 9. h3 {[%emt 0:05:57]} e5 {[%emt 0:05:09]} 10. Be3 {[%emt 0:
00:00]} (10. d5 $5 {[%cal Rd5c6]} Nb4 11. Bb1 $14) 10... d5 {[%emt 0:07:23]
B07: Pirc Defence: Miscellaneous Systems.} 11. exd5 {[%emt 0:10:33]} Nxd5 {
[%emt 0:02:05]} 12. Nxd5 {[%emt 0:01:15]} Qxd5 {[%emt 0:00:09] The position is
equal.} 13. Nc3 {[%emt 0:01:16]} Qa5 {[%emt 0:03:11]} 14. d5 {[%emt 0:05:13]}
Nd4 {[%emt 0:02:25]} 15. a3 {[%emt 0:02:03]} Bd7 {[%emt 0:05:10][%cal Yc8d7,
Yd7h3,Yh3g4]} 16. b4 {[%emt 0:00:51]} Qd8 {[%emt 0:00:29]} 17. Rc1 {[%emt 0:08:
37]} Rc8 {[%emt 0:05:06]} 18. Bxd4 {[%emt 0:14:56]} exd4 {[%emt 0:00:00]} 19.
Ne2 {[%emt 0:02:41]} (19. Ne4 $15) 19... Qg5 $17 {[%emt 0:04:08][%csl Yd5,Yh3]
[#]} 20. Be4 $146 {[%emt 0:09:41]} ({Predecessor:} 20. Rxc8 Rxc8 21. Be4 Bxh3
22. f4 Qe7 23. Qd3 Bg4 24. Nxd4 Qf6 25. Nc2 Qb6+ 26. Kh1 Bd7 27. Rf3 f5 28. Ne3
Bb5 29. Qb1 fxe4 30. Qxe4 Re8 {0-1 (30) Von Nordheim,T-Eder, P (2180) Germany
1996}) 20... Bxh3 {[%emt 0:07:57] Black is more active.} 21. Qd3 {[%emt 0:02:
59]} (21. Nxd4 $17 {was necessary.} Bxd4 22. Rxc8 Bxf2+ 23. Kxf2 (23. Rxf2 Rxc8
24. Qd2 Rc1+ 25. Kh2 Qe5+ 26. Qf4 Qxf4+ 27. Rxf4 Bd7 $17) 23... Bxc8 24. Bf3)
21... Rxc1 {[%emt 0:11:44]} 22. Rxc1 {[%emt 0:00:12]} Bg4 {[%emt 0:00:15] [#]
White must now prevent ...Bxe2. A strong pair of Bishops.} 23. f3 {[%emt 0:06:
13]} Bc8 {[%emt 0:06:10] Hoping for ...f5.} 24. f4 {[%emt 0:00:00]} Qf6 {
[%emt 0:02:23]} 25. Rc4 {[%emt 0:02:48]} (25. Rd1 {was the only defense.})
25... Bg4 $19 {[%emt 0:02:18]} 26. Bf3 {[%emt 0:00:40]} Bxf3 {[%emt 0:05:23]}
27. Qxf3 {[%emt 0:00:18]} Qa6 {[%emt 0:00:16]} 28. Qb3 {[%emt 0:01:44]} Qb5 {
[%emt 0:00:54]} 29. Nxd4 {[%emt 0:01:16]} Qxd5 {[%emt 0:00:00]} 30. Nf3 {
[%emt 0:00:01]} (30. Ne2 $142) 30... b5 {[%emt 0:01:47]} 31. Rc3 {[%emt 0:00:
05]} Qe4 {[%emt 0:00:27]} 32. Rc5 {[%emt 0:01:34]} Bd4+ {[%emt 0:02:08]} ({
Don't blunder} 32... Qxf4 $2 33. Qd3 $19) 33. Nxd4 {[%emt 0:00:00]} Qxd4+ {
[%emt 0:00:06] Endgame KQR-KQR} 34. Kh2 {[%emt 0:00:00]} Qxf4+ {[%emt 0:02:01]}
35. Qg3 {[%emt 0:00:01]} Qxg3+ {[%emt 0:05:57]} 36. Kxg3 {[%emt 0:00:02] KR-KR}
Rd8 {[%emt 0:00:10]} 37. Rxb5 {[%emt 0:00:13]} Rd3+ {[%emt 0:00:07]} 38. Kf4 {
[%emt 0:00:28]} Rxa3 {[%emt 0:00:08]} 39. Ke5 {[%emt 0:00:51]} Kg7 {[%emt 0:02:
42]} 40. Kd6 $2 {[%emt 0:01:59]} (40. Kf4) 40... h5 {[%emt 0:02:09][%cal Yh7h5,
Yh5h4,Yh4h3,Yh3h2]} 41. Kc6 {[%emt 0:08:10]} h4 {[%emt 0:00:44] [#] And now ...
Rg3 would win.} 42. Rc5 {[%emt 0:09:16]} Ra2 {[%emt 0:01:16]} 43. Kb7 {[%emt 0:
00:14]} Rxg2 {[%emt 0:00:00] ( -> ...h3)} 44. Kxa7 {[%emt 0:00:02]} h3 {
[%emt 0:00:22]} 45. Rc3 {[%emt 0:01:09]} h2 {[%emt 0:00:30]} 46. Rh3 {[%emt 0:
00:02]} Rb2 {[%emt 0:00:00] Weighted Error Value: White=0.74/Black=0.06 
(flawless)} 0-1

[Event "44th Chess Olympiad Open 2022"]
[Site "Chennai"]
[Date "2022.07.29"]
[Round "1.53"]
[White "Pesqueira, Jose"]
[Black "Veiga, Jose Francisco R P "]
[Result "0-1"]
[WhiteElo "1809"]
[BlackElo "2378"]
[Annotator "TA"]
[PlyCount "50"]
[EventDate "2022.??.??"]
[TimeControl "60"]

{[%evp 24,50,13,0,21,0,21,0,55,57,61,26,48,27,88,71,84,0,60,49,65,58,60,45,43,
0,0,-260,-239]} 1. e4 {[%emt 0:00:06]} e5 {[%emt 0:00:19]} 2. Nf3 {[%emt 0:00:
00]} Nc6 {[%emt 0:00:20]} 3. Bb5 {[%emt 0:00:10]} a6 {[%emt 0:00:15]} 4. Ba4 {
[%emt 0:00:07]} Nf6 {[%emt 0:00:43]} 5. O-O {[%emt 0:01:56]} Be7 {[%emt 0:00:
00]} 6. d3 {[%emt 0:08:12]} b5 {[%emt 0:01:57]} 7. Bb3 {[%emt 0:00:17]} d6 {
[%emt 0:00:13]} 8. c3 {[%emt 0:00:49]} O-O {[%emt 0:02:46]} 9. Nbd2 {[%emt 0:
00:00]} Na5 {[%emt 0:01:46]} 10. Bc2 {[%emt 0:03:04]} c5 {[%emt 0:01:15]} 11.
Re1 {[%emt 0:01:41]} Nc6 {[%emt 0:03:05]} 12. Nf1 {[%emt 0:01:24]} Re8 {
[%emt 0:01:44] 12...h6 gains popularity.} 13. Ng3 {[%emt 0:06:01]} g6 {[%emt 0:
00:00] C90: Closed Ruy Lopez with 7...d6: Early deviations.} 14. a4 {[%emt 0:
00:00]} Bb7 {[%emt 0:04:11]} 15. d4 {[%emt 0:13:35] [#]} Qc7 $146 {[%emt 0:00:
00]} ({Black should play} 15... exd4 $11 16. cxd4 Nxd4) ({Predecessor:} 15...
cxd4 16. cxd4 Nxd4 17. Nxd4 exd4 18. Qxd4 Rc8 19. Bd3 d5 20. e5 Ne4 21. b4 a5 {
½-½ (149) Lobanov,S (2483)-Sanal,V (2597) Tallinn 2019}) 16. d5 $14 {[%emt 0:
00:00]} Nb8 {[%emt 0:01:51]} 17. h3 {[%emt 0:08:20]} Nbd7 {[%emt 0:01:28]} 18.
Bh6 {[%emt 0:00:49][%cal Yc3c4]} Kh8 {[%emt 0:06:28]} (18... c4 $11 {remains
equal.}) 19. Ng5 $16 {[%emt 0:01:42]} Kg8 {[%emt 0:05:48]} 20. Nf3 {[%emt 0:00:
00]} (20. Rf1 $16) 20... Bf8 {[%emt 0:07:59]} (20... Kh8 $11) 21. Qd2 $14 {
[%emt 0:00:57]} Bxh6 {[%emt 0:01:44]} 22. Qxh6 {[%emt 0:00:05]} Reb8 {[%emt 0:
00:00]} 23. a5 {[%emt 0:04:32]} c4 {[%emt 0:02:37]} 24. Ng5 {[%emt 0:01:18]}
Qd8 {[%emt 0:00:15]} 25. Nh5 $2 {[%emt 0:07:18] [#]} gxh5 {[%emt 0:00:00]
Weighted Error Value: White=0.60/Black=0.25 (precise)} 0-1

[Event "44th Chess Olympiad Open 2022"]
[Site "Chennai"]
[Date "2022.07.29"]
[Round "1.54"]
[White "Pasko, Llambi"]
[Black "Martyr, Reginald"]
[Result "1-0"]
[WhiteElo "2418"]
[BlackElo "2194"]
[Annotator "ChessBase"]
[PlyCount "65"]
[EventDate "2022.??.??"]
[TimeControl "60"]

1. d4 {[%emt 0:00:04]} d5 {[%emt 0:00:24]} 2. c4 {[%emt 0:00:09]} dxc4 {
[%emt 0:00:16]} 3. e3 {[%emt 0:01:48]} Nf6 {[%emt 0:00:49]} 4. Bxc4 {[%emt 0:
00:00]} e6 {[%emt 0:01:08]} 5. Nf3 {[%emt 0:01:02]} c5 {[%emt 0:01:35]} 6. O-O
{[%emt 0:00:55]} a6 {[%emt 0:00:21]} 7. dxc5 {[%emt 0:03:05]} Bxc5 {[%emt 0:00:
00]} 8. Qe2 {[%emt 0:07:17]} b5 {[%emt 0:12:39]} 9. Bd3 {[%emt 0:01:00]} Bb7 {
[%emt 0:09:52]} 10. Bxb5+ {[%emt 0:04:57]} Nbd7 {[%emt 0:06:47]} 11. Bd3 {
[%emt 0:03:52]} g5 {[%emt 0:17:18]} 12. Rd1 {[%emt 0:08:36]} g4 {[%emt 0:04:51]
} 13. Nfd2 {[%emt 0:01:23]} Qc7 {[%emt 0:08:56]} 14. Nc3 {[%emt 0:02:18]} Bd6 {
[%emt 0:03:02]} 15. Nf1 {[%emt 0:12:45]} h5 {[%emt 0:05:13]} 16. e4 {[%emt 0:
00:00]} Rg8 {[%emt 0:01:32]} 17. Be3 {[%emt 0:05:02]} h4 {[%emt 0:05:14]} 18.
Rac1 {[%emt 0:04:09]} Qb8 {[%emt 0:00:17]} 19. Bc2 {[%emt 0:05:31]} Bc6 {
[%emt 0:06:54]} 20. Ba4 {[%emt 0:03:05]} Bxa4 {[%emt 0:00:26]} 21. Nxa4 {
[%emt 0:00:02]} Qb5 {[%emt 0:03:00]} 22. Qxb5 {[%emt 0:11:43]} axb5 {[%emt 0:
00:00]} 23. Nc3 {[%emt 0:06:13]} Be5 {[%emt 0:00:01]} 24. Nxb5 {[%emt 0:00:37]}
Rxa2 {[%emt 0:01:04]} 25. Na7 {[%emt 0:01:51]} Rxa7 {[%emt 0:01:42]} 26. Bxa7 {
[%emt 0:00:07]} Bxb2 {[%emt 0:00:15]} 27. Rc8+ {[%emt 0:00:31]} Ke7 {[%emt 0:
00:00]} 28. Rxg8 {[%emt 0:00:10]} Nxg8 {[%emt 0:00:01]} 29. Bd4 {[%emt 0:00:37]
} Bxd4 {[%emt 0:01:15]} 30. Rxd4 {[%emt 0:00:05]} Ne5 {[%emt 0:00:50]} 31. Nd2
{[%emt 0:00:38]} f5 {[%emt 0:00:40]} 32. exf5 {[%emt 0:00:59]} exf5 {[%emt 0:
00:00]} 33. Nc4 {[%emt 0:00:53]} 1-0

[Event "44th Chess Olympiad Open 2022"]
[Site "Chennai"]
[Date "2022.07.29"]
[Round "1.54"]
[White "Mehmeti, Dritan"]
[Black "Mathurin, Nathaniel"]
[Result "1-0"]
[WhiteElo "2371"]
[BlackElo "1722"]
[Annotator "TA"]
[PlyCount "61"]
[EventDate "2022.??.??"]
[TimeControl "60"]

{[%evp 9,61,6,37,47,60,33,50,8,0,-45,0,0,0,0,41,-40,-39,-38,-38,-22,-29,-94,
-31,-104,-101,-94,-95,-92,-100,-110,-73,-143,-52,-160,-97,-110,0,0,0,0,0,0,0,0,
0,0,0,-59,863,848,844,733,29985,887]} 1. d4 {[%emt 0:00:05]} Nf6 {[%emt 0:00:
00]} 2. Bg5 {[%emt 0:00:15]} Ne4 {[%emt 0:01:56]} 3. Bf4 {[%emt 0:00:08]} d5 {
[%emt 0:00:02]} 4. e3 {[%emt 0:00:27]} c5 {[%emt 0:01:19]} 5. Bd3 {[%emt 0:00:
00]} Nc6 {[%emt 0:08:14][%cal Yb8c6,Yc6e5,Ye5c4]} 6. Bxe4 {[%emt 0:00:00] A45:
Trompowsky Attack.} dxe4 {[%emt 0:00:02]} 7. d5 $1 {[%emt 0:00:10]} g5 {
[%emt 0:09:23]} 8. Bg3 {[%emt 0:09:36] White is slightly better.} (8. Bxg5 $5 {
[%cal Rd5c6]} Rg8 9. Bf4 $11) 8... Bg7 {[%emt 0:00:01]} 9. Nc3 {[%emt 0:02:14]
[#]} (9. dxc6 $2 Qxd1+ 10. Kxd1 Bxb2 $19) (9. c3 $5 {[%cal Rd5c6]} Na5 10. Na3
$11) 9... Ne5 $146 {[%emt 0:21:41]} (9... Bxc3+ $5 10. bxc3 Na5 $11) ({
Predecessor:} 9... Nb4 10. Qd2 O-O 11. Nge2 Bg4 12. a3 Bxe2 13. Kxe2 Bxc3 14.
Qxc3 Nxd5 15. Qe5 e6 {0-1 (35) Kleibel,U (2148)-Wertjanz,D (2267) Braunau 2013}
) 10. Nge2 {[%emt 0:06:08]} f5 {[%emt 0:09:14]} 11. h4 {[%emt 0:05:20]} Nc4 {
[%emt 0:04:22]} 12. b3 {[%emt 0:18:42] [#]} (12. hxg5 $14 Nxb2 13. Qb1) 12...
Qa5 $1 $15 {[%emt 0:00:02]} 13. bxc4 {[%emt 0:00:30] Hoping for Qd2.} (13. O-O
Nd6) 13... Bxc3+ {[%emt 0:00:09]} 14. Kf1 {[%emt 0:00:25][%cal Yh4g5]} g4 {
[%emt 0:00:04]} (14... Bxa1 $2 15. Qxa1 Rg8 16. hxg5 $18) 15. Rb1 {[%emt 0:00:
00] Inhibits Qb4.} ({Of course not} 15. Nxc3 Qxc3 16. Kg1 Kf7 $17) (15. Kg1 $11
{remains equal.}) 15... Bg7 {[%emt 0:00:32]} (15... Bf6 $17 16. Rb5 Qa3) 16. h5
{[%emt 0:02:09]} (16. Rb5 $15 Qxa2 17. Rxc5) 16... Qxa2 $17 {[%emt 0:08:44]}
17. h6 {[%emt 0:08:20]} Bf6 {[%emt 0:00:03]} 18. Kg1 {[%emt 0:03:28]} Qxc4 {
[%emt 0:01:04]} 19. Nf4 {[%emt 0:02:23]} O-O {[%emt 0:01:49]} 20. Bh4 {[%emt 0:
00:00]} (20. d6 $142) 20... b5 {[%emt 0:06:48]} ({Black should play} 20... Qa6
$17 {And now ...Bxh4 would win.} 21. Qd2 Bxh4 22. Rxh4 Qf6) 21. Bxf6 {[%emt 0:
00:00]} (21. d6 $1 $15 Rd8 22. Qd5+ (22. Bxf6 Rxd6 23. Qxd6 exd6 $17) 22...
Qxd5 23. Nxd5 Bxh4 24. Rxh4) 21... Rxf6 {[%emt 0:00:14]} (21... exf6 $142 22.
d6 Bd7) 22. Rh5 {[%emt 0:00:34]} Rb8 {[%emt 0:06:53]} (22... b4 $17 {aiming
for ...Kf7.} 23. Ra1 Kf7) 23. Rb3 $11 {[%emt 0:00:34]} Rbb6 {[%emt 0:01:26]}
24. Qa1 {[%emt 0:00:54] Black must now prevent Rg5+.} Qxc2 {[%emt 0:04:54]} 25.
Ra3 {[%emt 0:04:33]} a6 {[%emt 0:03:53] ...b4 is the strong threat.} (25...
Rxh6 $2 26. Rxa7 c4 27. Rxe7 $18) 26. Rg5+ {[%emt 0:12:02]} Kf8 {[%emt 0:00:00]
Strongly threatening ...b4.} 27. Nh5 {[%emt 0:01:19] Dancing on a razor blade.}
b4 {[%emt 0:01:04]} 28. Ra2 {[%emt 0:01:52] [#]} (28. Nxf6 $11 Rxf6 29. Rxa6
Bxa6 30. Rxf5) 28... b3 $2 {[%emt 0:00:01]} (28... Qd3 $1 $15 29. Qe5 g3 $1 30.
Nxg3 Rbd6) 29. Rxc2 $18 {[%emt 0:01:43]} bxc2 {[%emt 0:00:01] [#]} 30. Kh2 $1 {
[%emt 0:00:12]} (30. Qc1 Rb1 31. Kh1 Rxc1+ 32. Kh2 Rxh6 33. d6 Rb1 34. Kg3 c1=Q
$19) 30... Rb1 {[%emt 0:00:51]} 31. Qa5 {[%emt 0:01:04] Weighted Error Value:
White=0.24 (precise) /Black=0.47} (31. Qe5 $142 c1=Q 32. d6 Qh1+ 33. Kg3 f4+
34. Nxf4 Qh3+ 35. gxh3 Rg1+ 36. Kh4) 1-0

[Event "44th Chess Olympiad Open 2022"]
[Site "Chennai"]
[Date "2022.07.29"]
[Round "1.54"]
[White "Sixtus Gabriel"]
[Black "Ashiku, Franc"]
[Result "0-1"]
[WhiteElo "1787"]
[BlackElo "2422"]
[Annotator "ChessBase"]
[PlyCount "78"]
[EventDate "2022.??.??"]
[TimeControl "60"]

1. e4 {[%emt 0:00:14]} e5 {[%emt 0:00:09]} 2. Nf3 {[%emt 0:00:18]} Nc6 {
[%emt 0:00:06]} 3. Bc4 {[%emt 0:01:03]} Bc5 {[%emt 0:00:24]} 4. O-O {[%emt 0:
00:00]} Nf6 {[%emt 0:00:33]} 5. d3 {[%emt 0:00:59]} h6 {[%emt 0:01:07]} 6. a4 {
[%emt 0:02:15]} a6 {[%emt 0:02:53]} 7. Nc3 {[%emt 0:00:43]} d6 {[%emt 0:00:41]}
8. h3 {[%emt 0:01:05]} g5 {[%emt 0:01:47]} 9. Nh2 {[%emt 0:05:12]} g4 {[%emt 0:
00:00]} 10. hxg4 {[%emt 0:03:12]} Rg8 {[%emt 0:03:18]} 11. g5 {[%emt 0:02:54]}
hxg5 {[%emt 0:02:12]} 12. Be3 {[%emt 0:01:54]} g4 {[%emt 0:03:27]} 13. Bxc5 {
[%emt 0:06:12]} dxc5 {[%emt 0:00:16]} 14. Qd2 {[%emt 0:01:27]} Rg6 {[%emt 0:00:
00]} 15. Qe3 {[%emt 0:04:05]} Qd6 {[%emt 0:07:15]} 16. Ne2 {[%emt 0:03:13]} Nd4
{[%emt 0:16:08]} 17. Rac1 {[%emt 0:06:00]} Nxe2+ {[%emt 0:09:13]} 18. Qxe2 {
[%emt 0:01:07]} Be6 {[%emt 0:01:46]} 19. Bxe6 {[%emt 0:05:32]} fxe6 {[%emt 0:
00:00]} 20. g3 {[%emt 0:01:18]} O-O-O {[%emt 0:01:17]} 21. Kg2 {[%emt 0:00:45]}
Rh8 {[%emt 0:00:58]} 22. f3 {[%emt 0:05:01]} gxf3+ {[%emt 0:05:58]} 23. Nxf3 {
[%emt 0:01:46]} Nh5 {[%emt 0:00:57]} 24. Qe3 {[%emt 0:03:34]} Nxg3 {[%emt 0:00:
00]} 25. Kf2 {[%emt 0:02:03]} Nxf1 {[%emt 0:02:29]} 26. Rxf1 {[%emt 0:00:55]}
Rh3 {[%emt 0:00:22]} 27. Rg1 {[%emt 0:04:38]} Rxg1 {[%emt 0:02:42]} 28. Kxg1 {
[%emt 0:00:19]} Qf8 {[%emt 0:00:35]} 29. Kg2 {[%emt 0:00:28]} Rh5 {[%emt 0:00:
00]} 30. Qf2 {[%emt 0:02:38]} Rh7 {[%emt 0:00:38]} 31. Kf1 {[%emt 0:00:29]} Qf4
{[%emt 0:01:32]} 32. Qg2 {[%emt 0:00:59]} Rh8 {[%emt 0:04:10]} 33. b3 {[%emt 0:
00:00]} Qe3 {[%emt 0:02:44]} 34. Qf2 {[%emt 0:02:32]} Rh1+ {[%emt 0:00:41]} 35.
Kg2 {[%emt 0:00:35]} Qc1 {[%emt 0:02:54]} 36. Nxe5 {[%emt 0:00:47]} Rh8 {
[%emt 0:00:24]} 37. Nf3 {[%emt 0:04:22]} Rg8+ {[%emt 0:01:13]} 38. Kh2 {
[%emt 0:00:50]} Qf4+ {[%emt 0:00:11]} 39. Kh1 {[%emt 0:00:27]} Rg3 {[%emt 0:00:
00]} 0-1

[Event "44th Chess Olympiad Open 2022"]
[Site "Chennai"]
[Date "2022.07.29"]
[Round "1.55"]
[White "Sipila, Vilka"]
[Black "Egbe, Kossi Thierry"]
[Result "1-0"]
[WhiteElo "2416"]
[BlackElo "1703"]
[Annotator "ChessBase"]
[PlyCount "93"]
[EventDate "2022.??.??"]
[TimeControl "60"]

1. e4 {[%emt 0:00:02]} e5 {[%emt 0:00:29]} 2. Nf3 {[%emt 0:00:06]} Nc6 {
[%emt 0:01:38]} 3. Bb5 {[%emt 0:00:12]} a6 {[%emt 0:00:26]} 4. Ba4 {[%emt 0:00:
00]} Nf6 {[%emt 0:02:25]} 5. O-O {[%emt 0:00:12]} d6 {[%emt 0:00:42]} 6. c3 {
[%emt 0:01:14]} Be7 {[%emt 0:00:51]} 7. d4 {[%emt 0:00:06]} b5 {[%emt 0:01:02]}
8. Bb3 {[%emt 0:00:49]} Bg4 {[%emt 0:00:22]} 9. Be3 {[%emt 0:02:10]} O-O {
[%emt 0:03:53]} 10. Nbd2 {[%emt 0:00:21]} d5 {[%emt 0:01:59]} 11. exd5 {
[%emt 0:11:04]} Nxd5 {[%emt 0:06:55]} 12. h3 {[%emt 0:00:32]} exd4 {[%emt 0:00:
00]} 13. cxd4 {[%emt 0:01:13]} Bh5 {[%emt 0:00:51]} 14. Rc1 {[%emt 0:00:24]}
Na5 {[%emt 0:04:49]} 15. g4 {[%emt 0:01:57]} Nxe3 {[%emt 0:01:24]} 16. fxe3 {
[%emt 0:00:07]} Bg6 {[%emt 0:01:51]} 17. Bc2 {[%emt 0:06:35]} Bg5 {[%emt 0:00:
00]} 18. Re1 {[%emt 0:01:55]} Re8 {[%emt 0:00:56]} 19. Nxg5 {[%emt 0:04:13]}
Qxg5 {[%emt 0:00:17]} 20. Qf3 {[%emt 0:01:05]} c6 {[%emt 0:20:39]} 21. b4 {
[%emt 0:00:59]} Nc4 {[%emt 0:06:04]} 22. Nxc4 {[%emt 0:00:13]} bxc4 {[%emt 0:
00:00]} 23. Bxg6 {[%emt 0:00:08]} Qxg6 {[%emt 0:00:15]} 24. Rxc4 {[%emt 0:00:
00]} Re6 {[%emt 0:00:17]} 25. Rec1 {[%emt 0:04:19]} Rf8 {[%emt 0:08:04]} 26.
Rxc6 {[%emt 0:04:55]} Qd3 {[%emt 0:02:49]} 27. R6c3 {[%emt 0:01:54]} Qd2 {
[%emt 0:02:35]} 28. Qf2 {[%emt 0:00:28]} Qxf2+ {[%emt 0:01:01]} 29. Kxf2 {
[%emt 0:00:07]} f5 {[%emt 0:00:29]} 30. gxf5 {[%emt 0:04:39]} Rxf5+ {[%emt 0:
00:00]} 31. Ke2 {[%emt 0:00:06]} Rh5 {[%emt 0:02:02]} 32. Rc8+ {[%emt 0:01:10]}
Kf7 {[%emt 0:00:38]} 33. Rf1+ {[%emt 0:00:11]} Kg6 {[%emt 0:00:26]} 34. Rf3 {
[%emt 0:00:29]} Rg5 {[%emt 0:01:34]} 35. Kd3 {[%emt 0:00:16]} Rg2 {[%emt 0:00:
00]} 36. Rc2 {[%emt 0:00:16]} Rg1 {[%emt 0:01:12]} 37. Rc5 {[%emt 0:08:35]}
Rd1+ {[%emt 0:02:36]} 38. Kc4 {[%emt 0:00:10]} Rb1 {[%emt 0:02:43]} 39. a3 {
[%emt 0:01:17]} Ra1 {[%emt 0:00:45]} 40. Kd5 {[%emt 0:00:12]} Rb6 {[%emt 0:00:
00]} 41. e4 {[%emt 0:30:09]} Rd1 {[%emt 0:30:46]} 42. e5 {[%emt 0:00:11]} h6 {
[%emt 0:01:07]} 43. Rg3+ {[%emt 0:00:34]} Kh7 {[%emt 0:00:29]} 44. Rc7 {
[%emt 0:00:18]} Rb5+ {[%emt 0:00:30]} 45. Ke4 {[%emt 0:00:21]} Re1+ {[%emt 0:
00:00]} 46. Kd3 {[%emt 0:00:07]} Rd1+ {[%emt 0:00:28]} 47. Ke2 {[%emt 0:00:12]}
1-0

[Event "44th Chess Olympiad Open 2022"]
[Site "Chennai"]
[Date "2022.07.29"]
[Round "1.55"]
[White "Koykka, Pekka"]
[Black "Tchouka, Yakini"]
[Result "1-0"]
[WhiteElo "2361"]
[BlackElo "1934"]
[Annotator "TA"]
[PlyCount "53"]
[EventDate "2022.??.??"]
[TimeControl "60"]

{[%evp 15,53,-20,-15,-37,-18,0,-10,0,24,43,120,125,125,126,126,114,131,131,131,
123,127,129,230,228,229,225,291,247,264,227,224,217,228,191,918,912,2046,1466,
1358,1254]} 1. Nf3 {[%emt 0:00:05]} Nf6 {[%emt 0:00:25]} 2. g3 {[%emt 0:00:11]}
g6 {[%emt 0:01:22]} 3. Bg2 {[%emt 0:00:08]} Bg7 {[%emt 0:00:11]} 4. O-O {
[%emt 0:00:06]} O-O {[%emt 0:00:09]} 5. c4 {[%emt 0:00:29]} c5 {[%emt 0:00:32]}
6. Nc3 {[%emt 0:00:05]} Nc6 {[%emt 0:00:13]} 7. a3 {[%emt 0:01:58]} d5 {
[%emt 0:07:21]} 8. cxd5 {[%emt 0:00:42]} Nxd5 {[%emt 0:00:10]} 9. Qc2 {[%emt 0:
00:00] A34: Symmetrical English: 2 Nc3, lines with ...d5.} Nxc3 {[%emt 0:05:27]
} (9... Bg4 {looks sharper.} 10. e3 Qd7 11. Ng5 Nc7) 10. dxc3 {[%emt 0:00:40]}
Qc7 {[%emt 0:07:11]} 11. Be3 {[%emt 0:10:10] The position is equal.} b6 {
[%emt 0:00:35]} 12. Bf4 {[%emt 0:00:28]} e5 {[%emt 0:20:59] [#]} (12... Qd7 $14
) 13. Nxe5 $1 $16 {[%emt 0:07:53]} Bxe5 {[%emt 0:01:04]} 14. Bxe5 {[%emt 0:01:
51]} Qxe5 {[%emt 0:00:30]} 15. Bxc6 {[%emt 0:00:14]} Bf5 {[%emt 0:00:00]} 16.
e4 {[%emt 0:03:36] [#]} Bh3 $146 {[%emt 0:02:03][%cal Ye5f6]} ({Predecessor:} 
16... Rac8 17. f4 Qe6 18. Bb7 Qe7 19. Bxc8 Bxc8 20. Rad1 Bb7 21. e5 Ba8 22. c4
b5 {1-0 (30) Fos Santacreu,J (2225)-Del Valle Domenech,R Cullera 1996}) 17.
Rfe1 {[%emt 0:13:31]} Rad8 {[%emt 0:05:06]} 18. Bd5 {[%emt 0:07:07]} Rxd5 {
[%emt 0:12:03]} (18... Kg7 $16 19. Rad1 f6) 19. exd5 {[%emt 0:01:25]} Qxd5 {
[%emt 0:00:05][%csl Gh3][%cal Rd5g2]} 20. Qe4 {[%emt 0:01:24] Inhibits Qg2+.}
Qb3 {[%emt 0:01:15]} 21. Re2 {[%emt 0:01:43]} Rd8 {[%emt 0:04:29]} 22. Rae1 {
[%emt 0:04:47] Qh4 is the strong threat.} Be6 {[%emt 0:00:31]} 23. h4 {[%emt 0:
03:22]} h5 {[%emt 0:02:02]} 24. Qc2 {[%emt 0:08:46]} Qd5 {[%emt 0:00:00] [#]} (
24... Qxc2 25. Rxc2 Kg7) 25. Rxe6 $1 $18 {[%emt 0:01:16] White is clearly
winning.} fxe6 {[%emt 0:01:15]} (25... Kg7 26. Re7) 26. Qxg6+ {[%emt 0:00:04]}
Kf8 {[%emt 0:04:48]} 27. Rxe6 {[%emt 0:01:21] White took control after the
opening. Weighted Error Value: White=0.12 (very precise) / Black=0.32} 1-0

[Event "44th Chess Olympiad Open 2022"]
[Site "Chennai"]
[Date "2022.07.29"]
[Round "1.55"]
[White "Strovsky, Mikhail"]
[Black "Nyysti, Sampsa"]
[Result "0-1"]
[WhiteElo "2158"]
[BlackElo "2363"]
[Annotator "ChessBase"]
[PlyCount "80"]
[EventDate "2022.??.??"]
[TimeControl "60"]

1. e4 {[%emt 0:00:21]} c5 {[%emt 0:00:03]} 2. Nf3 {[%emt 0:00:08]} e6 {[%emt 0:
00:00]} 3. b3 {[%emt 0:00:09]} b6 {[%emt 0:00:21]} 4. Bb2 {[%emt 0:00:46]} Bb7
{[%emt 0:00:06]} 5. d3 {[%emt 0:02:45]} Nf6 {[%emt 0:08:44]} 6. g3 {[%emt 0:00:
00]} d5 {[%emt 0:04:06]} 7. exd5 {[%emt 0:04:05]} Qxd5 {[%emt 0:02:50]} 8. Bg2
{[%emt 0:00:37]} Be7 {[%emt 0:00:12]} 9. O-O {[%emt 0:00:22]} O-O {[%emt 0:00:
00]} 10. Nc3 {[%emt 0:01:30]} Qd7 {[%emt 0:01:16]} 11. Ne5 {[%emt 0:10:14]} Qc7
{[%emt 0:07:07]} 12. Bxb7 {[%emt 0:04:42]} Qxb7 {[%emt 0:00:03]} 13. Qf3 {
[%emt 0:00:35]} Qxf3 {[%emt 0:00:07]} 14. Nxf3 {[%emt 0:00:08]} Nc6 {[%emt 0:
00:00]} 15. a3 {[%emt 0:02:33]} Rac8 {[%emt 0:04:02]} 16. Rac1 {[%emt 0:20:30]}
Rfd8 {[%emt 0:02:18]} 17. Rfe1 {[%emt 0:06:39]} Ne8 {[%emt 0:03:01]} 18. Kg2 {
[%emt 0:10:46]} Bf6 {[%emt 0:05:24]} 19. Ba1 {[%emt 0:09:10]} Nc7 {[%emt 0:00:
00]} 20. a4 {[%emt 0:02:27]} Nb4 {[%emt 0:02:36]} 21. Ne5 {[%emt 0:04:14]} Bxe5
{[%emt 0:09:57]} 22. Rxe5 {[%emt 0:00:14]} f6 {[%emt 0:01:02]} 23. Re2 {
[%emt 0:00:41]} Kf7 {[%emt 0:00:11]} 24. Rce1 {[%emt 0:01:11]} e5 {[%emt 0:00:
00]} 25. Bb2 {[%emt 0:00:59]} Ne6 {[%emt 0:01:25]} 26. Rd2 {[%emt 0:05:32]} Nd4
{[%emt 0:07:40]} 27. Rc1 {[%emt 0:00:39]} a6 {[%emt 0:00:46]} 28. Ne4 {[%emt 0:
00:00]} Ndxc2 {[%emt 0:00:53]} 29. Rcxc2 {[%emt 0:01:23]} Nxc2 {[%emt 0:00:08]}
30. Rxc2 {[%emt 0:00:03]} Rxd3 {[%emt 0:00:20]} 31. Nc3 {[%emt 0:00:52]} a5 {
[%emt 0:06:41]} 32. Nb5 {[%emt 0:01:34]} Ke6 {[%emt 0:06:03]} 33. Bc3 {[%emt 0:
00:00]} c4 {[%emt 0:04:06]} 34. b4 {[%emt 0:00:22]} Rxc3 {[%emt 0:01:58]} 35.
Rxc3 {[%emt 0:01:15]} axb4 {[%emt 0:00:03]} 36. Rc1 {[%emt 0:00:19]} c3 {
[%emt 0:01:54]} 37. Kf1 {[%emt 0:00:15]} c2 {[%emt 0:00:34]} 38. Ke2 {[%emt 0:
00:00]} b3 {[%emt 0:00:15]} 39. Kd2 {[%emt 0:01:14]} b2 {[%emt 0:00:05]} 40.
Rxc2 {[%emt 0:00:12]} Rd8+ {[%emt 0:00:04]} 0-1